bitfinex/quotes_BTCUSD_20250508
["timestamp","ask_amount","ask_price","bid_price","bid_amount"]
[1746711913904,0.11928346,99352.0,99351.0,9.629e-05]
[1746711914596,0.11928346,99352.0,99351.0,0.00109629]
[1746711914992,0.12028346,99352.0,99351.0,0.00109629]
[1746711915199,0.10418346,99352.0,99351.0,0.00109629]
[1746711917339,0.13648346,99352.0,99351.0,0.00109629]
[1746711917667,0.13448346,99352.0,99351.0,9.629e-05]
[1746711917852,0.13648346,99352.0,99351.0,0.00109629]
[1746711918482,0.12128346,99352.0,99351.0,0.00109629]
[1746711918658,0.10266692,99352.0,99351.0,0.00109629]
[1746711918854,0.10518358,99352.0,99351.0,0.00109629]
[1746711919092,0.10718358,99352.0,99351.0,0.00109629]
[1746711919293,0.10718347,99352.0,99351.0,0.00109629]
[1746711924370,0.10466692,99352.0,99351.0,0.00109629]
[1746711925403,0.004,99352.0,99351.0,0.03239629]
[1746711926189,0.002,99352.0,99351.0,0.03239629]
[1746711926589,0.002,99352.0,99351.0,0.03139629]
[1746711926849,0.002,99352.0,99351.0,0.03229629]
[1746711927003,0.004,99352.0,99351.0,0.03229629]
[1746711927219,0.004,99352.0,99351.0,0.37229629]
[1746711927410,0.004,99352.0,99351.0,0.50714364]
[1746711927815,0.004,99352.0,99351.0,5.55714364]
[1746711928812,0.004,99352.0,99351.0,5.56496874]
[1746711929013,0.002,99352.0,99351.0,5.56496874]
[1746711929240,0.21133608,99368.0,99364.0,0.010064]
[1746711929519,0.21133608,99368.0,99365.0,0.02314821]
[1746711929706,0.21133608,99368.0,99366.0,0.0317]
[1746711929910,0.21133608,99368.0,99367.0,0.0317]
[1746711930745,0.21233608,99368.0,99367.0,0.0317]
[1746711930952,0.21133608,99368.0,99367.0,0.0317]
[1746711931798,0.21133608,99368.0,99367.0,0.0337]
[1746711932429,0.312003,99368.0,99367.0,0.001]
[1746711932616,0.20129229,99358.0,99357.0,0.032]
[1746711933442,0.20129229,99358.0,99351.0,0.37427672]
[1746711933443,0.20130445,99352.0,99351.0,9.629e-05]
[1746711933675,0.20131053,99349.0,99348.0,0.00782844]
[1746711934687,0.20131053,99349.0,99348.0,0.0341495]
[1746711934895,0.20131053,99349.0,99348.0,0.00782844]
[1746711935172,0.20131053,99349.0,99347.0,0.00782844]
[1746711935378,0.20131053,99349.0,99345.0,1.0]
[1746711935379,0.20131458,99347.0,99345.0,1.0]
[1746711935584,0.10318343,99346.0,99345.0,1.0]
[1746711935786,0.10066692,99346.0,99345.0,1.0]
[1746711936461,0.10066692,99346.0,99345.0,0.78320232]
[1746711936912,0.20231458,99347.0,99345.0,0.86052255]
[1746711937065,0.3029815,99347.0,99345.0,0.78320232]
[1746711937252,0.3029815,99347.0,99345.0,0.78420232]
[1746711938679,0.3019815,99347.0,99345.0,0.78220232]
[1746711939077,0.3029815,99347.0,99345.0,0.78520232]
[1746711940548,0.3029815,99347.0,99345.0,0.86372255]
[1746711940744,0.3029815,99347.0,99345.0,0.87942255]
[1746711941325,0.001,99347.0,99346.0,0.0308]
[1746711941523,0.001,99347.0,99346.0,5.42115293]
[1746711941752,0.001,99347.0,99346.0,5.4208]
[1746711942315,0.01006491,99355.0,99351.0,0.01006532]
[1746711942539,0.20130078,99354.0,99353.0,0.0313]
[1746711942873,4.571e-05,99355.0,99354.0,0.3713]
[1746711944020,4.571e-05,99355.0,99354.0,0.0163]
[1746711944177,0.20130445,99352.0,99350.0,0.34]
[1746711944567,0.20130445,99352.0,99346.0,0.001]
[1746711944568,0.20131458,99347.0,99346.0,0.001]
[1746711945828,0.20131458,99347.0,99345.0,0.78220232]
[1746711945829,0.30449789,99347.0,99345.0,0.78220232]
[1746711945999,0.10066692,99346.0,99345.0,0.78220232]
[1746711946303,0.20431458,99347.0,99345.0,0.78220232]
[1746711946741,0.20131458,99347.0,99345.0,0.78220232]
[1746711946938,0.20331458,99347.0,99345.0,0.78220232]
[1746711947152,0.003,99346.0,99345.0,0.78320232]
[1746711947443,0.20331458,99347.0,99345.0,0.78220232]
[1746711948657,0.20631458,99347.0,99345.0,0.78320232]
[1746711948869,0.20431458,99347.0,99345.0,0.78320232]
[1746711949271,0.002,99346.0,99345.0,0.78320232]
[1746711949841,0.20431458,99347.0,99345.0,0.78320232]
[1746711950040,0.3069815,99347.0,99345.0,0.78320232]
[1746711950451,0.3039815,99347.0,99345.0,0.78220232]
[1746711951660,0.3039815,99347.0,99346.0,0.0151]
[1746711951661,0.20331458,99347.0,99346.0,0.0151]
[1746711951856,0.20131661,99346.0,99345.0,0.78320232]
[1746711952070,0.20131661,99346.0,99345.0,0.79800232]
[1746711952313,0.20131661,99346.0,99345.0,0.79900232]
[1746711952746,0.20131661,99346.0,99345.0,0.79800232]
[1746711952957,0.20431661,99346.0,99345.0,0.79900232]
[1746711953238,0.20431661,99346.0,99345.0,0.81410232]
[1746711953859,0.003,99346.0,99345.0,0.91476924]
[1746711954077,0.003,99346.0,99345.0,6.50608787]
[1746711954426,0.003,99346.0,99345.0,4.30038787]
[1746711955258,4.571e-05,99355.0,99352.0,0.34]
[1746711955466,4.571e-05,99355.0,99354.0,0.3716]
[1746711955663,4.571e-05,99355.0,99354.0,3.7687]
[1746711955871,4.571e-05,99355.0,99354.0,3.87116692]
[1746711956499,4.571e-05,99355.0,99354.0,0.0316]
[1746711956705,0.00204571,99355.0,99354.0,0.3361]
[1746711957007,0.00304571,99355.0,99354.0,0.0326]
[1746711961505,0.20434408,99355.0,99354.0,0.0326]
[1746711964399,0.20434408,99355.0,99354.0,0.0164]
[1746711964635,0.20434408,99355.0,99354.0,0.001]
[1746711966107,0.305011,99355.0,99354.0,0.001]
[1746711966481,0.320711,99355.0,99354.0,0.001]
[1746711967264,0.305011,99355.0,99354.0,0.001]
[1746711973356,0.20434408,99355.0,99354.0,0.0313]
[1746711973736,0.20434408,99355.0,99354.0,0.016]
[1746711974353,0.00304571,99355.0,99354.0,0.0321]
[1746711975114,0.20434408,99355.0,99354.0,0.0321]
[1746711977132,0.305011,99355.0,99354.0,0.001]
[1746711977902,0.321111,99355.0,99354.0,0.001]
[1746711978534,0.336711,99355.0,99354.0,0.001]
[1746711978886,0.20131661,99346.0,99345.0,0.78220232]
[1746711980173,0.20131661,99346.0,99345.0,0.78320232]
[1746711981384,0.20231661,99346.0,99345.0,0.78520232]
[1746711985175,0.30298353,99346.0,99345.0,0.78520232]
[1746711985399,0.31838353,99346.0,99345.0,0.78520232]
[1746711985807,0.33428353,99346.0,99345.0,0.78520232]
[1746711987866,0.33328353,99346.0,99345.0,0.78220232]
[1746711988052,0.34882438,99346.0,99345.0,0.78320232]
[1746711988488,0.34882438,99346.0,99345.0,0.78220232]
[1746711988624,0.3813467,99346.0,99345.0,0.78220232]
[1746711988823,0.75134833,99346.0,99345.0,0.76760232]
[1746711989099,0.74834833,99346.0,99345.0,0.76660232]
[1746711989301,0.71704833,99346.0,99345.0,0.70750232]
[1746711989510,0.76904833,99346.0,99345.0,0.70850232]
[1746711989720,0.77204833,99346.0,99345.0,0.70850232]
[1746711990558,0.78204833,99346.0,99345.0,0.70850232]
[1746711990917,0.77804833,99346.0,99345.0,0.70750232]
[1746711991125,0.78104833,99346.0,99345.0,0.70750232]
[1746711991893,0.78704833,99346.0,99345.0,0.70750232]
[1746711992648,0.73704833,99346.0,99345.0,0.70750232]
[1746711992901,0.78704833,99346.0,99345.0,0.70750232]
[1746711994011,1.47064833,99346.0,99345.0,0.70750232]
[1746711994247,1.46464833,99346.0,99345.0,0.70750232]
[1746711994443,1.47464833,99346.0,99345.0,0.70750232]
[1746711995056,1.46712438,99346.0,99345.0,0.70750232]
[1746711995932,1.34258353,99346.0,99345.0,0.70750232]
[1746711996134,1.39258353,99346.0,99345.0,0.70750232]
[1746711996394,1.34258353,99346.0,99345.0,0.70750232]
[1746711996584,1.35712438,99346.0,99345.0,0.70750232]
[1746711996988,1.34258353,99346.0,99345.0,0.70750232]
[1746711997812,1.01712438,99346.0,99345.0,0.70750232]
[1746711998246,1.00258353,99346.0,99345.0,0.70750232]
[1746711999459,0.31298353,99346.0,99345.0,0.70750232]
[1746711999675,0.31298353,99346.0,99345.0,0.73850232]
[1746712000460,0.30898353,99346.0,99345.0,0.73850232]
[1746712000619,0.30298353,99346.0,99345.0,0.73950232]
[1746712001059,0.30398353,99346.0,99345.0,0.74050232]
[1746712001722,0.30398353,99346.0,99345.0,0.73950232]
[1746712002140,0.30398353,99346.0,99345.0,0.70950232]
[1746712002314,0.30398353,99346.0,99345.0,0.70850232]
[1746712002315,0.30298353,99346.0,99345.0,0.70850232]
[1746712002550,0.30298353,99346.0,99345.0,0.74040232]
[1746712002750,0.30398353,99346.0,99345.0,0.74140232]
[1746712003284,0.30398353,99346.0,99345.0,0.74040232]
[1746712003721,0.30398353,99346.0,99345.0,0.74140232]
[1746712003906,0.30298353,99346.0,99345.0,0.74040232]
[1746712004263,0.30398353,99346.0,99345.0,0.74140232]
[1746712004468,0.30298353,99346.0,99345.0,0.73940232]
[1746712004873,0.30398353,99346.0,99345.0,0.74040232]
[1746712005114,0.30298353,99346.0,99345.0,0.70850232]
[1746712005540,0.30398353,99346.0,99345.0,0.70950232]
[1746712005738,0.65852438,99346.0,99345.0,0.70850232]
[1746712006930,0.65852438,99346.0,99345.0,0.70750232]
[1746712007136,0.65952438,99346.0,99345.0,0.70850232]
[1746712007361,0.65852438,99346.0,99345.0,0.70750232]
[1746712007516,0.66452438,99346.0,99345.0,0.70750232]
[1746712007721,0.66352438,99346.0,99345.0,0.70750232]
[1746712008280,0.66752438,99346.0,99345.0,0.70750232]
[1746712010003,1.03016438,99346.0,99345.0,0.70750232]
[1746712013203,1.75793773,99346.0,99345.0,0.70750232]
[1746712014282,1.80793773,99346.0,99345.0,0.70750232]
[1746712017573,1.85793773,99346.0,99345.0,0.70750232]
[1746712019435,1.82976438,99346.0,99345.0,0.70750232]
[1746712019637,1.85790601,99346.0,99345.0,0.65642857]
[1746712019835,1.85790601,99346.0,99325.0,0.002]
[1746712019836,0.60589799,99326.0,99325.0,0.002]
[1746712020083,1.39616491,99326.0,99325.0,0.002]
[1746712020715,1.40616491,99326.0,99325.0,0.002]
[1746712021074,1.41816491,99326.0,99325.0,0.003]
[1746712022361,1.46816491,99326.0,99325.0,0.003]
[1746712023478,1.57416491,99326.0,99325.0,0.003]
[1746712023679,1.57416491,99326.0,99300.0,0.002]
[1746712023680,0.55594869,99301.0,99300.0,0.002]
[1746712023794,0.55598317,99284.0,99268.0,0.0162]
[1746712024017,1.75897009,99284.0,99262.0,0.0158]
[1746712024242,1.75897009,99284.0,99241.0,0.01]
[1746712024469,1.75897009,99284.0,99254.0,0.015]
[1746712024470,0.75666632,99276.0,99254.0,0.015]
[1746712025103,0.65666632,99276.0,99254.0,0.015]
[1746712025228,0.65666632,99276.0,99250.0,0.0171]
[1746712025229,0.69397826,99276.0,99275.0,0.00245703]
[1746712025856,0.69597826,99276.0,99275.0,0.00245703]
[1746712026063,0.65171233,99276.0,99275.0,0.01855703]
[1746712026286,0.65171233,99276.0,99275.0,0.03465703]
[1746712026491,0.65271233,99276.0,99275.0,0.03665703]
[1746712026727,0.30512547,99276.0,99275.0,0.03665703]
[1746712031356,0.30358337,99276.0,99275.0,0.03665703]
[1746712032891,0.30358337,99276.0,99275.0,0.00445703]
[1746712032892,0.65812422,99276.0,99275.0,0.00445703]
[1746712034488,0.70812422,99276.0,99275.0,0.00445703]
[1746712034689,0.65812422,99276.0,99275.0,0.00445703]
[1746712034859,0.70812422,99276.0,99275.0,0.00445703]
[1746712035291,0.70612422,99276.0,99275.0,0.00445703]
[1746712035457,0.70512422,99276.0,99275.0,0.00245703]
[1746712035663,0.65912422,99276.0,99275.0,0.00445703]
[1746712035864,0.70612422,99276.0,99275.0,0.00445703]
[1746712036309,0.20147682,99267.0,99266.0,7e-05]
[1746712036551,0.70920392,99267.0,99266.0,7e-05]
[1746712036797,0.82268459,99267.0,99266.0,7e-05]
[1746712037169,0.87268459,99267.0,99266.0,7e-05]
[1746712037816,0.82268459,99267.0,99266.0,7e-05]
[1746712038015,0.82668459,99267.0,99266.0,7e-05]
[1746712038221,0.72068459,99267.0,99266.0,7e-05]
[1746712038485,0.77068459,99267.0,99266.0,7e-05]
[1746712038851,0.77168459,99267.0,99266.0,0.00207]
[1746712039262,0.77168459,99267.0,99266.0,7e-05]
[1746712039263,0.77068459,99267.0,99266.0,7e-05]
[1746712039800,0.77168459,99267.0,99266.0,7e-05]
[1746712040150,0.77068459,99267.0,99266.0,7e-05]
[1746712040557,0.69814374,99267.0,99266.0,0.00107]
[1746712040777,0.71268459,99267.0,99266.0,0.00107]
[1746712040973,0.70868459,99267.0,99266.0,0.00107]
[1746712041404,0.71468459,99267.0,99266.0,0.00107]
[1746712041708,1.07160459,99267.0,99266.0,0.00107]
[1746712041943,1.07160459,99267.0,99266.0,7e-05]
[1746712041944,1.07560459,99267.0,99266.0,7e-05]
[1746712042058,1.07560459,99267.0,99266.0,0.03197]
[1746712042274,1.02760459,99267.0,99266.0,0.03297]
[1746712042726,0.68560459,99267.0,99266.0,0.03197]
[1746712042951,0.67306374,99267.0,99266.0,0.03297]
[1746712043632,0.67106374,99267.0,99266.0,0.03197]
[1746712043877,1.02560459,99267.0,99266.0,0.03197]
[1746712044682,1.01960459,99267.0,99266.0,0.03197]
[1746712045063,1.02760459,99267.0,99266.0,0.03297]
[1746712045437,1.00706374,99267.0,99266.0,0.03297]
[1746712045585,1.00706374,99267.0,99266.0,0.03197]
[1746712045586,1.00806374,99267.0,99266.0,0.03197]
[1746712045770,0.66806374,99267.0,99266.0,0.03197]
[1746712045990,0.66906374,99267.0,99266.0,0.03297]
[1746712046395,0.66606374,99267.0,99266.0,0.03297]
[1746712046751,0.66906374,99267.0,99266.0,0.03297]
[1746712046957,0.66806374,99267.0,99266.0,0.03197]
[1746712047596,0.65246374,99267.0,99266.0,0.03197]
[1746712047810,0.64946374,99267.0,99266.0,0.03197]
[1746712048414,0.65046374,99267.0,99266.0,0.03197]
[1746712048613,0.65046374,99267.0,99266.0,0.03397]
[1746712049011,0.63386374,99267.0,99266.0,0.03197]
[1746712049214,0.51759682,99267.0,99266.0,0.03197]
[1746712049569,0.51859682,99267.0,99266.0,0.03697]
[1746712051701,0.01007526,99253.0,99247.0,0.21184243]
[1746712051970,0.1693116,99250.0,99248.0,0.07734407]
[1746712052127,0.1693116,99250.0,99247.0,0.00125]
[1746712052335,0.17938716,99250.0,99248.0,4.173211]
[1746712052501,0.17938716,99250.0,99248.0,4.20331086]
[1746712052705,0.17938716,99250.0,99248.0,0.03009986]
[1746712052967,0.20151539,99248.0,99247.0,0.00625]
[1746712053564,0.20151539,99248.0,99247.0,0.00125]
[1746712054942,0.20151539,99248.0,99247.0,0.03285]
[1746712055547,0.20251539,99248.0,99247.0,0.03285]
[1746712056666,0.20351539,99248.0,99247.0,0.03285]
[1746712056836,0.20251539,99248.0,99247.0,0.03285]
[1746712057410,0.20351539,99248.0,99247.0,0.03285]
[1746712058439,0.21158773,99250.0,99248.0,0.0155]
[1746712058640,0.20151357,99249.0,99248.0,0.0155]
[1746712058844,0.21158695,99252.0,99251.0,0.0158]
[1746712059160,0.21158695,99252.0,99251.0,0.0314]
[1746712061354,0.21258695,99252.0,99251.0,0.0314]
[1746712062178,0.21358695,99252.0,99251.0,0.0334]
[1746712063466,0.29392719,99252.0,99251.0,0.0334]
[1746712063686,0.21358695,99252.0,99251.0,0.03777545]
[1746712063894,0.21358695,99252.0,99251.0,0.0334]
[1746712066803,0.21358695,99252.0,99251.0,0.0178]
[1746712068029,0.31425387,99252.0,99251.0,0.002]
[1746712070495,0.31325387,99252.0,99251.0,0.002]
[1746712070674,0.31325387,99252.0,99251.0,0.003]
[1746712070675,0.31425387,99252.0,99251.0,0.003]
[1746712071040,0.31325387,99252.0,99251.0,0.001]
[1746712071368,0.31425387,99252.0,99251.0,0.002]
[1746712071570,0.31425387,99252.0,99251.0,0.0348]
[1746712071814,0.31425387,99252.0,99251.0,0.0186]
[1746712072177,0.31425387,99252.0,99251.0,0.002]
[1746712077079,0.31425387,99252.0,99251.0,0.0345]
[1746712077080,0.21358695,99252.0,99251.0,0.0345]
[1746712079890,0.002,99252.0,99251.0,0.2360093]
[1746712080324,0.002,99252.0,99251.0,0.0345]
[1746712080876,0.002,99252.0,99251.0,0.03887964]
[1746712081976,0.20350727,99252.0,99251.0,0.02227964]
[1746712082202,0.01007627,99243.0,99242.0,0.38055617]
[1746712082422,0.01007627,99243.0,99238.0,0.0149327]
[1746712082423,0.01007648,99241.0,99238.0,0.0149327]
[1746712082633,0.20153164,99240.0,99238.0,0.0149327]
[1746712083111,0.10066692,99239.0,99238.0,0.0149327]
[1746712083822,0.10112364,99239.0,99238.0,0.0149327]
[1746712084469,0.10212364,99239.0,99238.0,0.0149327]
[1746712084713,0.00145672,99239.0,99238.0,0.0460327]
[1746712084932,0.00245672,99239.0,99238.0,0.0470327]
[1746712085334,0.00345672,99239.0,99238.0,0.0470327]
[1746712085771,0.00345672,99239.0,99238.0,0.0312327]
[1746712085997,0.00345672,99239.0,99238.0,0.0159327]
[1746712086424,0.00145672,99239.0,99238.0,0.0149327]
[1746712086640,0.00145672,99239.0,99238.0,0.0470327]
[1746712087079,0.00145672,99239.0,99238.0,0.0308327]
[1746712087299,0.00245672,99239.0,99238.0,0.0308327]
[1746712087531,0.00145672,99239.0,99238.0,0.0308327]
[1746712087741,0.00045672,99239.0,99238.0,0.0308327]
[1746712087979,0.00145672,99239.0,99238.0,0.0308327]
[1746712088192,0.00145672,99239.0,99238.0,0.0149327]
[1746712088193,0.00245672,99239.0,99238.0,0.0149327]
[1746712088421,0.20399039,99239.0,99238.0,0.0149327]
[1746712089907,0.20499039,99239.0,99238.0,0.0149327]
[1746712090568,0.20599039,99239.0,99238.0,0.0149327]
[1746712091030,0.30665731,99239.0,99238.0,0.0149327]
[1746712091542,0.33795731,99239.0,99238.0,0.0149327]
[1746712092022,0.67795731,99239.0,99238.0,0.0149327]
[1746712092259,0.69149816,99239.0,99238.0,0.0139327]
[1746712092493,0.20155195,99230.0,99229.0,0.00025]
[1746712092726,0.7563792,99230.0,99229.0,0.00025]
[1746712092953,0.75385911,99230.0,99229.0,0.00025]
[1746712093192,0.76839996,99230.0,99229.0,0.00025]
[1746712093996,0.76939996,99230.0,99229.0,0.00025]
[1746712094195,0.67451887,99230.0,99229.0,0.00025]
[1746712095024,0.67551887,99230.0,99229.0,0.00025]
[1746712095234,1.44545911,99230.0,99229.0,0.00025]
[1746712095455,1.36511887,99230.0,99229.0,0.00025]
[1746712095661,1.37965972,99230.0,99229.0,0.00025]
[1746712096365,1.37865972,99230.0,99229.0,0.00025]
[1746712096569,1.37965972,99230.0,99229.0,0.00025]
[1746712096772,1.37865972,99230.0,99229.0,0.00025]
[1746712097035,1.37965972,99230.0,99229.0,0.00025]
[1746712097685,0.57277835,99217.0,99216.0,0.00248433]
[1746712097906,1.05098612,99217.0,99216.0,0.00248433]
[1746712098357,1.04943202,99217.0,99216.0,0.00248433]
[1746712100210,1.05043202,99217.0,99216.0,0.00248433]
[1746712100421,1.05443202,99217.0,99216.0,0.00248433]
[1746712100632,1.05343202,99217.0,99216.0,0.00248433]
[1746712101083,1.06208138,99217.0,99216.0,0.00248433]
[1746712101952,1.75168138,99217.0,99216.0,0.00248433]
[1746712104566,1.73714053,99217.0,99216.0,0.00248433]
[1746712104892,1.38949117,99217.0,99216.0,0.00248433]
[1746712105143,1.35829117,99217.0,99216.0,0.00248433]
[1746712106334,0.66869117,99217.0,99216.0,0.00248433]
[1746712106538,0.66869117,99217.0,99216.0,0.00148433]
[1746712107141,0.66369117,99217.0,99216.0,0.01808433]
[1746712107585,0.66569117,99217.0,99216.0,0.01808433]
[1746712107795,0.66469117,99217.0,99216.0,0.00148433]
[1746712107951,0.66369117,99217.0,99216.0,0.00148433]
[1746712108640,0.66369117,99217.0,99216.0,0.03228433]
[1746712109175,0.66369117,99217.0,99216.0,0.00148433]
[1746712109385,0.66569117,99217.0,99216.0,0.00248433]
[1746712109583,0.66469117,99217.0,99216.0,0.00248433]
[1746712110268,0.66569117,99217.0,99216.0,0.00448433]
[1746712111078,0.66569117,99217.0,99216.0,0.01968433]
[1746712111482,0.66569117,99217.0,99216.0,0.00448433]
[1746712112937,0.69749117,99217.0,99216.0,0.00448433]
[1746712113154,0.69749117,99217.0,99200.0,0.3271]
[1746712113155,0.20161087,99201.0,99200.0,0.32183433]
[1746712113365,0.30227779,99201.0,99200.0,0.32183433]
[1746712113805,0.30227779,99201.0,99200.0,0.31271848]
[1746712114464,0.30273423,99201.0,99200.0,0.31271848]
[1746712114712,0.30273423,99201.0,99200.0,0.30771848]
[1746712115939,0.30373423,99201.0,99200.0,0.34001848]
[1746712116241,0.30473423,99201.0,99200.0,0.34001848]
[1746712116648,0.30373423,99201.0,99200.0,0.34001848]
[1746712116984,0.30473423,99201.0,99200.0,0.34001848]
[1746712117188,0.30373423,99201.0,99200.0,0.34001848]
[1746712117450,0.30373423,99201.0,99200.0,0.37402033]
[1746712117646,0.20406731,99201.0,99200.0,0.34001848]
[1746712118112,0.00245644,99201.0,99200.0,0.34001848]
[1746712118895,0.00145644,99201.0,99200.0,0.34001848]
[1746712119254,0.00145644,99201.0,99200.0,0.35455933]
[1746712119454,0.00145644,99201.0,99200.0,5.40555933]
[1746712119658,0.00245644,99201.0,99200.0,1.85245933]
[1746712119911,0.00245644,99201.0,99200.0,1.46265933]
[1746712120809,0.00245644,99201.0,99200.0,1.41915933]
[1746712121028,0.00245644,99201.0,99200.0,1.15125933]
[1746712121390,0.00245644,99201.0,99200.0,1.25192625]
[1746712121593,0.00245644,99201.0,99200.0,5.43254825]
[1746712121815,0.00245644,99201.0,99200.0,4.66942825]
[1746712122018,0.00245644,99201.0,99200.0,2.98332433]
[1746712122616,0.00045644,99201.0,99200.0,2.98232433]
[1746712122818,0.00245644,99201.0,99200.0,2.98632433]
[1746712123251,0.00145644,99201.0,99200.0,2.98432433]
[1746712123446,0.00145644,99201.0,99200.0,2.97121833]
[1746712123779,0.00245644,99201.0,99200.0,0.69855933]
[1746712123911,0.00245644,99201.0,99200.0,0.79922625]
[1746712124305,0.00245644,99201.0,99200.0,5.74855933]
[1746712124481,0.00245644,99201.0,99200.0,1.71355933]
[1746712124679,0.00245644,99201.0,99200.0,3.72205933]
[1746712124882,0.00245644,99201.0,99200.0,1.26411848]
[1746712125058,0.00245644,99201.0,99200.0,0.61837632]
[1746712125624,0.00245644,99201.0,99200.0,0.27837632]
[1746712125816,0.00245644,99201.0,99200.0,0.16316855]
[1746712127993,0.00245644,99201.0,99200.0,0.1777094]
[1746712129035,0.00245644,99201.0,99200.0,0.16316855]
[1746712129235,0.00245644,99201.0,99200.0,0.13086855]
[1746712130115,0.1834636,99201.0,99200.0,0.13086855]
[1746712130952,0.10312336,99201.0,99200.0,0.13086855]
[1746712131298,0.00245644,99201.0,99200.0,0.16276855]
[1746712131899,0.00145644,99201.0,99200.0,0.16176855]
[1746712132369,0.00145644,99201.0,99200.0,0.15976855]
[1746712132521,0.00045644,99201.0,99200.0,0.15976855]
[1746712132728,0.00145644,99201.0,99200.0,0.16176855]
[1746712133139,0.00145644,99201.0,99200.0,0.16076855]
[1746712133339,0.01008115,99195.0,99192.0,0.00025]
[1746712133538,0.20162509,99194.0,99192.0,0.00025]
[1746712134364,0.20162713,99193.0,99192.0,0.00025]
[1746712135839,0.20162713,99193.0,99192.0,0.00125]
[1746712136371,0.20162713,99193.0,99192.0,0.00025]
[1746712136570,0.20262713,99193.0,99192.0,0.00125]
[1746712136817,0.20362713,99193.0,99192.0,0.00125]
[1746712137803,0.20462713,99193.0,99192.0,0.00125]
[1746712138524,0.30529405,99193.0,99192.0,0.00125]
[1746712138935,0.32089405,99193.0,99192.0,0.00125]
[1746712139099,0.30529405,99193.0,99192.0,0.00125]
[1746712139822,0.20462713,99193.0,99192.0,0.00125]
[1746712144709,0.30529405,99193.0,99192.0,0.00125]
[1746712146250,0.30529405,99193.0,99192.0,0.00715199]
[1746712146396,0.32109405,99193.0,99192.0,0.00715199]
[1746712146596,0.33739405,99193.0,99192.0,0.00125]
[1746712147011,0.30529405,99193.0,99192.0,0.00125]
[1746712148532,0.33689405,99193.0,99192.0,0.00125]
[1746712152289,0.30529405,99193.0,99192.0,0.00125]
[1746712152840,0.32169405,99193.0,99192.0,0.00125]
[1746712153145,0.33799405,99193.0,99192.0,0.00125]
[1746712154214,0.67799405,99193.0,99192.0,0.00125]
[1746712154778,0.67799405,99193.0,99192.0,0.00025]
[1746712154779,0.67699405,99193.0,99192.0,0.00025]
[1746712155083,0.67699405,99193.0,99192.0,0.00125]
[1746712155314,0.67799405,99193.0,99192.0,0.00125]
[1746712155702,0.67699405,99193.0,99192.0,0.00025]
[1746712156198,0.67799405,99193.0,99192.0,0.00225]
[1746712157207,0.68565971,99193.0,99192.0,0.00225]
[1746712161058,0.68465971,99193.0,99192.0,0.00225]
[1746712161171,0.68765971,99193.0,99192.0,0.00025]
[1746712161577,0.68565971,99193.0,99192.0,0.00025]
[1746712161825,0.68965971,99193.0,99192.0,0.00025]
[1746712162179,0.68765971,99193.0,99192.0,0.00025]
[1746712162572,0.57293526,99189.0,99188.0,0.08730128]
[1746712162774,0.67360218,99189.0,99188.0,0.08730128]
[1746712164356,0.30530218,99189.0,99188.0,0.08730128]
[1746712164700,0.32110218,99189.0,99188.0,0.08730128]
[1746712164921,0.32310218,99189.0,99188.0,0.08830128]
[1746712165329,0.30574845,99189.0,99188.0,0.08830128]
[1746712166424,0.33734845,99189.0,99188.0,0.08830128]
[1746712167364,0.30574845,99189.0,99188.0,0.08830128]
[1746712172767,0.33827077,99189.0,99188.0,0.08830128]
[1746712172968,0.33824845,99189.0,99188.0,0.08830128]
[1746712176126,0.33924845,99189.0,99188.0,0.08830128]
[1746712177376,0.33904845,99189.0,99188.0,0.08830128]
[1746712180438,0.30674845,99189.0,99188.0,0.08830128]
[1746712181904,0.33927077,99189.0,99188.0,0.08830128]
[1746712182119,0.33884845,99189.0,99188.0,0.08830128]
[1746712191449,0.30674845,99189.0,99188.0,0.08830128]
[1746712192944,0.32264845,99189.0,99188.0,0.08830128]
[1746712193194,0.33784845,99189.0,99188.0,0.08830128]
[1746712193439,0.30674845,99189.0,99188.0,0.08830128]
[1746712195503,0.30674845,99189.0,99188.0,0.10420128]
[1746712195715,0.20608153,99189.0,99188.0,0.08830128]
[1746712195936,0.30674845,99189.0,99188.0,0.08830128]
[1746712196367,0.30474845,99189.0,99188.0,0.08730128]
[1746712196813,0.30274845,99189.0,99188.0,0.08830128]
[1746712197258,0.30374845,99189.0,99188.0,0.08730128]
[1746712197512,0.30174845,99189.0,99188.0,0.08830128]
[1746712197728,0.30474845,99189.0,99188.0,0.08830128]
[1746712199548,0.20408153,99189.0,99188.0,0.11890128]
[1746712200435,0.20308153,99189.0,99188.0,0.11790128]
[1746712200647,0.30274845,99189.0,99188.0,0.08930128]
[1746712201067,0.30374845,99189.0,99188.0,0.08930128]
[1746712201282,0.30274845,99189.0,99188.0,0.08730128]
[1746712201477,0.30474845,99189.0,99188.0,0.12030128]
[1746712202513,0.20408153,99189.0,99188.0,0.12030128]
[1746712203148,0.20408153,99189.0,99188.0,0.12430972]
[1746712203583,0.20308153,99189.0,99188.0,0.12230972]
[1746712203759,0.20108153,99189.0,99188.0,0.12230972]
[1746712203983,0.20208153,99189.0,99188.0,0.17989545]
[1746712204184,0.003,99189.0,99188.0,0.17528093]
[1746712204322,0.20363526,99189.0,99188.0,5.22328093]
[1746712204517,0.002,99189.0,99188.0,5.22328093]
[1746712204727,0.003,99189.0,99188.0,5.22528093]
[1746712204975,0.003,99189.0,99188.0,5.32594785]
[1746712205144,0.003,99189.0,99188.0,5.59433985]
[1746712205342,0.003,99189.0,99188.0,5.59622532]
[1746712205544,0.002,99189.0,99188.0,5.93622532]
[1746712206448,0.001,99189.0,99188.0,5.93422532]
[1746712206654,0.002,99189.0,99188.0,5.93422532]
[1746712207113,0.001,99189.0,99188.0,5.93322532]
[1746712207271,0.01008115,99195.0,99193.0,0.01454085]
[1746712207632,0.29086619,99199.0,99193.0,0.01454085]
[1746712207633,0.28078545,99199.0,99197.0,0.01454085]
[1746712207760,0.28078545,99199.0,99198.0,5.0828]
[1746712207953,0.28078545,99199.0,99198.0,5.08867735]
[1746712208762,0.28278545,99199.0,99198.0,5.08867735]
[1746712209196,0.28078545,99199.0,99198.0,5.08867735]
[1746712209419,0.28278545,99199.0,99198.0,5.08967735]
[1746712209623,0.28278545,99199.0,99198.0,2.78787735]
[1746712209819,0.28278545,99199.0,99198.0,0.00687735]
[1746712210043,0.38345237,99199.0,99198.0,0.00687735]
[1746712210310,0.38445237,99199.0,99198.0,0.001]
[1746712210514,0.38445237,99199.0,99198.0,0.002]
[1746712211231,0.28378545,99199.0,99198.0,0.002]
[1746712214033,0.28378545,99199.0,99198.0,0.0347]
[1746712215721,0.28378545,99199.0,99198.0,0.07287344]
[1746712216557,0.28378545,99199.0,99198.0,0.41871907]
[1746712217643,0.28378545,99199.0,99198.0,5.46871907]
[1746712220359,0.00045644,99201.0,99200.0,0.38564085]